bitfinex/quotes_SOLUSD_20241222
["timestamp","ask_amount","ask_price","bid_price","bid_amount"]
[1734878089301,6.3989,181.18,180.99,23.902374]
[1734878089501,6.3989,181.18,181.06,20.0]
[1734878090128,6.3989,181.18,181.08,13.806]
[1734878090526,6.3989,181.18,181.04,13.8084]
[1734878091047,6.3989,181.18,180.93,13.8174]
[1734878091048,1.03496908,181.17,180.93,13.8174]
[1734878091249,1.03496908,181.17,180.94,30.0]
[1734878091548,1.606,181.16,180.94,30.0]
[1734878091716,20.0,181.14,180.94,30.0]
[1734878091908,24.81239751,181.13,180.93,13.8174]
[1734878092110,20.0,181.1,180.87,27.6431]
[1734878092315,20.0,181.08,180.88,30.0]
[1734878092614,6.3989,181.06,180.89,0.12549]
[1734878092810,6.3989,181.06,180.87,27.6431]
[1734878093014,6.3989,181.06,180.88,0.12549]
[1734878093206,6.3989,181.06,180.87,27.6431]
[1734878093721,6.3989,181.06,180.9,0.12549]
[1734878094033,6.3989,181.06,180.89,41.4616]
[1734878094608,6.3989,181.06,180.9,0.12549]
[1734878094806,6.3989,181.06,180.95,0.12549]
[1734878095416,6.3989,181.06,180.98,20.0]
[1734878095938,6.3989,181.06,180.94,20.0]
[1734878096111,6.3989,181.06,180.91,13.819]
[1734878096610,6.3989,181.06,180.88,0.12549]
[1734878097138,1.03568946,181.05,180.88,0.12549]
[1734878097318,6.3989,181.06,180.87,27.6431]
[1734878097517,1.03582424,181.05,180.87,27.6431]
[1734878097731,6.3989,181.06,180.88,0.12549]
[1734878098103,1.03563119,181.05,180.88,0.12549]
[1734878098308,20.0,181.03,180.85,13.8236]
[1734878098542,1.03601959,181.02,180.85,13.8236]
[1734878098842,20.0,181.03,180.86,0.5058543]
[1734878099005,1.03609028,181.02,180.86,0.5058543]
[1734878099202,21.03606435,181.03,180.86,0.5058543]
[1734878099638,34.84606435,181.03,180.79,0.50577567]
[1734878099844,20.0,181.03,180.79,0.50577567]
[1734878100051,1.606,181.04,180.79,0.50577567]
[1734878100351,1.606,181.04,180.8,0.12549]
[1734878100630,1.03576471,181.03,180.82,0.12549]
[1734878100842,1.606,181.04,180.84,41.473]
[1734878101031,1.606,181.04,180.88,20.12549]
[1734878101234,1.606,181.04,180.92,20.0]
[1734878101710,1.606,181.04,180.93,0.5051744]
[1734878101915,1.03556431,181.03,180.88,20.0]
[1734878102241,1.606,181.04,180.89,0.63094858]
[1734878102410,1.606,181.04,180.92,20.0]
[1734878102606,1.606,181.04,180.93,0.12549]
[1734878102806,1.606,181.04,180.94,0.50490932]
[1734878103030,1.606,181.04,180.88,13.8208]
[1734878103216,1.03571076,181.03,180.9,0.12549]
[1734878103434,1.606,181.04,180.92,0.12549]
[1734878103609,1.606,181.04,180.94,23.902374]
[1734878103929,1.606,181.04,180.96,0.12549]
[1734878104107,6.3989,181.06,180.97,20.50439697]
[1734878104841,6.3989,181.06,180.95,20.0]
[1734878105206,6.3989,181.06,180.96,0.12549]
[1734878105405,9.6584,181.13,181.02,0.12549]
[1734878105609,9.6584,181.13,181.02,0.62941425]
[1734878105814,9.6584,181.13,181.03,312.0]
[1734878106111,9.6584,181.13,181.04,0.12549]
[1734878106334,9.6584,181.13,181.07,0.12549]
[1734878106531,6.1743,181.13,181.08,0.50336087]
[1734878106837,6.1743,181.13,180.98,23.776884]
[1734878106838,6.1743,181.13,181.01,20.0]
[1734878107044,6.1743,181.13,181.05,20.0]
[1734878107347,6.1743,181.13,181.02,14.31435097]
[1734878108644,6.1743,181.13,180.96,20.0]
[1734878108825,1.03531917,181.12,180.97,0.50436693]
[1734878109013,1.03531917,181.12,180.94,0.50459389]
[1734878109554,1.03531917,181.12,180.97,312.0]
[1734878109726,6.1743,181.13,180.97,312.0]
[1734878109916,6.1743,181.13,180.98,0.62987963]
[1734878110741,6.1743,181.13,181.0,20.0]
[1734878110943,6.1743,181.13,181.01,0.50405125]
[1734878111126,1.03532419,181.12,180.97,24.28126097]
[1734878111328,1.03532419,181.12,180.97,0.50437697]
[1734878111644,6.1743,181.13,180.97,14.31867697]
[1734878111841,6.1743,181.13,180.98,23.902374]
[1734878112049,6.1743,181.13,180.99,0.50398367]
[1734878112256,6.1743,181.13,181.0,23.902374]
[1734878112422,6.1743,181.13,181.04,20.0]
[1734878112625,6.1743,181.13,181.03,20.50365304]
[1734878113032,6.1743,181.13,181.04,325.8091]
[1734878113442,6.1743,181.13,181.06,30.0]
[1734878114323,20.0,181.1,180.87,2.70571102]
[1734878114525,1.0355777,181.09,180.95,30.0]
[1734878114822,1.03557521,181.09,180.96,0.504879]
[1734878115153,1.03560205,181.12,180.96,0.504879]
[1734878115924,13.8037,181.11,180.96,0.504879]
[1734878116235,13.8037,181.11,180.91,13.8183]
[1734878116236,1.03559537,181.1,180.91,13.8183]
[1734878116439,1.03559537,181.1,180.92,0.50493476]
[1734878116645,1.03559537,181.1,180.92,312.50493476]
[1734878116866,3.60959,181.09,180.92,312.0]
[1734878117174,20.0,181.03,180.82,27.6517]
[1734878117331,1.03594792,181.02,180.83,30.50562441]
[1734878117668,1.03594792,181.02,180.83,44.33002441]
[1734878118233,1.03594792,181.02,180.83,0.50562441]
[1734878118442,20.0,180.98,180.79,13.8278]
[1734878118771,1.0363611,180.97,180.79,13.8278]
[1734878119469,1.0363611,180.97,180.8,0.50643367]
[1734878119648,3.4841,181.0,180.81,0.12549]
[1734878119853,3.4841,181.0,180.83,20.12549]
[1734878120072,3.4841,181.0,180.88,312.0]
[1734878120361,3.4841,181.0,180.83,20.12549]
[1734878120572,3.4841,181.0,180.85,0.12549]
[1734878120779,3.4841,181.0,180.88,20.0]
[1734878121075,3.4841,181.0,180.88,20.50532737]
[1734878121240,3.5916603,181.0,180.89,13.8205]
[1734878121440,0.1075603,181.0,180.92,20.0]
[1734878121658,0.1075603,181.0,180.92,20.50487283]
[1734878121859,0.1075603,181.0,180.93,23.902374]
[1734878122056,0.1075603,181.0,180.92,20.0]
[1734878122257,0.1075603,181.0,180.93,23.776884]
[1734878122442,0.1075603,181.0,180.94,0.50496495]
[1734878122778,0.1075603,181.0,180.96,20.0]
[1734878122945,0.1075603,181.0,180.98,20.0]
[1734878123366,0.1075603,181.0,180.98,332.0]
[1734878124108,0.1075603,181.0,180.99,38.21943935]
[1734878124109,6.03e-05,181.0,180.99,38.21943935]
[1734878124768,6.03e-05,181.0,180.99,68.21943935]
[1734878126378,0.6642269,181.17,181.04,23.902374]
[1734878126551,0.6642269,181.17,181.11,20.0]
[1734878126745,0.6642269,181.17,181.11,20.50289424]
[1734878127282,0.6642269,181.17,181.12,23.902374]
[1734878127581,2.69e-05,181.17,181.16,20.0]
[1734878127781,2.69e-05,181.17,181.16,44.40451391]
[1734878128247,2.69e-05,181.17,181.16,58.20441391]
[1734878128781,0.6642269,181.35,181.21,23.902374]
[1734878129084,0.6642269,181.35,181.28,20.0]
[1734878129374,0.6642269,181.35,181.28,20.5009594]
[1734878129947,0.6642269,181.35,181.17,0.50077138]
[1734878130274,1.03382181,181.34,181.18,30.0]
[1734878130483,1.03427603,181.33,181.18,30.0]
[1734878130680,1.03433218,181.32,181.18,30.0]
[1734878130854,3.5073,181.33,181.12,13.8026]
[1734878131180,23.776884,181.29,181.13,30.0]
[1734878131480,1.03462947,181.28,181.07,14.30892125]
[1734878132186,1.03458371,181.29,181.1,0.12549]
[1734878132369,1.03458371,181.29,181.11,0.50272181]
[1734878132559,13.7908,181.28,181.12,20.0]
[1734878132761,1.03461723,181.27,181.12,20.0]
[1734878133470,1.03461723,181.27,181.12,20.50278482]
[1734878133783,23.902374,181.28,181.09,13.8052]
[1734878134094,13.7931,181.25,181.09,312.0]
[1734878134281,1.03477862,181.24,181.05,13.8081]
[1734878134482,1.03477862,181.24,181.06,0.12549]
[1734878134670,23.776884,181.29,181.07,0.50331053]
[1734878134871,6.5493,181.3,181.07,0.50331053]
[1734878134872,1.03450849,181.28,181.07,0.50331053]
[1734878135086,23.776884,181.27,181.07,0.50331053]
[1734878135273,1.03475734,181.26,181.07,0.50331053]
[1734878135463,1.03475734,181.26,181.07,30.0]
[1734878135667,1.03475734,181.26,181.1,20.0]
[1734878135972,1.03466557,181.29,181.1,20.50305971]
[1734878136174,6.5493,181.3,181.14,33.8007]
[1734878136368,6.5493,181.3,181.15,0.50235208]
[1734878136571,1.03431175,181.29,181.14,20.0]
[1734878136896,1.03431175,181.29,181.13,20.0]
[1734878137391,1.03431175,181.29,181.13,332.0]
[1734878137860,23.776884,181.28,181.1,13.804]
[1734878138060,0.12549,181.24,181.11,30.0]
[1734878138260,23.776884,181.23,181.07,0.50344819]
[1734878138494,1.03480356,181.22,181.07,0.50344819]
[1734878138693,1.03484155,181.25,181.07,0.50344819]
[1734878138997,21.03484155,181.25,181.08,13.806]
[1734878139204,30.326184,181.24,181.03,13.8091]
[1734878139380,4.54225625,181.23,181.03,13.8091]
[1734878139570,20.0,181.21,181.03,13.8091]
[1734878139893,20.0,181.21,181.0,0.50311099]
[1734878139894,1.0349381,181.2,181.0,0.50311099]
[1734878140101,1.0349381,181.2,181.01,13.8113]
[1734878140268,1.0349381,181.2,181.02,0.50389401]
[1734878140888,1.0349381,181.2,181.02,312.50389401]
[1734878141091,13.7976,181.19,181.01,13.8113]
[1734878141272,6.4799,181.17,181.01,13.8113]
[1734878141480,6.4799,181.17,181.03,0.12549]
[1734878141705,6.4799,181.17,181.04,0.5034946]
[1734878142466,6.4799,181.17,181.04,20.5034946]
[1734878143196,6.4799,181.17,181.08,20.0]
[1734878143372,6.4799,181.17,181.09,0.50301728]
[1734878143579,6.4799,181.17,181.12,20.0]
[1734878143782,6.4799,181.17,181.13,0.50284221]
[1734878143983,9.8027,181.23,181.13,0.50284221]
[1734878144185,9.8027,181.23,181.16,20.0]
[1734878144415,9.8027,181.23,181.09,23.776884]
[1734878144580,9.8027,181.23,181.12,20.0]
[1734878144780,9.8027,181.23,181.13,0.50266097]
[1734878144997,6.2954,181.23,181.16,20.0]
[1734878145198,6.2954,181.23,181.17,0.5022354]
[1734878146107,21.2954,181.29,181.19,20.0]
[1734878146476,21.2954,181.29,181.17,0.5022354]
[1734878146676,7.901e-05,181.1,181.0,9.75672864]
[1734878146886,7.901e-05,181.1,181.07,30.0]
[1734878147312,7.901e-05,181.1,181.08,0.12549]
[1734878147811,7.901e-05,181.1,181.08,30.12549]
[1734878148120,7.901e-05,181.1,181.09,23.902374]
[1734878148482,7.901e-05,181.1,181.09,23.776884]
[1734878148684,7.901e-05,181.1,181.0,13.8121]
[1734878148892,7.901e-05,181.1,181.03,30.0]
[1734878149289,7.901e-05,181.1,181.0,13.8121]
[1734878149290,7.901e-05,181.1,181.01,0.12549]
[1734878149921,7.901e-05,181.1,181.02,13.8106]
[1734878150106,7.901e-05,181.1,181.03,23.902374]
[1734878150614,7.901e-05,181.1,181.06,20.0]
[1734878151600,7.901e-05,181.1,181.08,20.0]
[1734878151999,7.901e-05,181.1,181.05,13.8082]
[1734878153334,7.901e-05,181.1,181.08,20.0]
[1734878153630,7.901e-05,181.1,181.09,13.8052]
[1734878154122,7.901e-05,181.1,181.08,20.0]
[1734878154591,7.901e-05,181.1,181.05,13.8076]
[1734878154792,7.901e-05,181.1,181.08,20.0]
[1734878155005,7.901e-05,181.1,181.06,23.902374]
[1734878155700,7.901e-05,181.1,181.07,13.8068]
[1734878156005,7.901e-05,181.1,181.09,20.0]
[1734878157113,7.901e-05,181.1,181.0,27.6243]
[1734878157319,7.901e-05,181.1,181.04,20.0]
[1734878157514,7.901e-05,181.1,181.01,41.434]
[1734878157834,7.901e-05,181.1,180.98,13.8136]
[1734878158295,6.2954,181.09,180.98,13.8136]
[1734878159506,6.2954,181.09,180.91,69.095]
[1734878159708,6.2954,181.09,180.98,312.0]
[1734878160027,6.2954,181.09,181.01,20.0]
[1734878161028,4.58624906,181.08,180.92,30.0]
[1734878161226,3.5509,181.08,180.92,30.0]
[1734878161390,4.58645321,181.08,180.92,30.0]
[1734878161595,4.58645321,181.08,180.93,13.8174]
[1734878162001,3.5509,181.08,180.93,13.8174]
[1734878162539,3.5509,181.08,180.96,20.0]
[1734878162748,3.5509,181.08,180.96,33.8151]
[1734878163406,6.2954,181.09,181.0,20.0]
[1734878163604,6.2954,181.09,180.96,20.0]
[1734878163605,1.03534474,181.08,180.96,20.0]
[1734878163842,1.03534474,181.08,180.97,30.0]
[1734878164348,14.84134474,181.08,180.85,13.8236]
[1734878164647,14.84134474,181.08,180.86,0.12549]
[1734878164938,14.84134474,181.08,180.87,13.822]
[1734878165141,6.2269,181.03,180.87,13.822]
[1734878165438,1.03604798,181.02,180.78,13.8289]
[1734878165604,1.03604798,181.02,180.79,30.0]
[1734878166251,3.7383,180.96,180.79,30.0]
[1734878166440,20.0,180.94,180.79,30.0]
[1734878166739,20.0454,180.92,180.79,30.0]
[1734878167041,1.03653998,180.91,180.74,13.8314]
[1734878167631,1.03653998,180.91,180.72,0.6642269]
[1734878167964,6.2269,180.9,180.72,0.6642269]
[1734878168111,1.03692108,180.89,180.73,13.95819]
[1734878168315,1.03692108,180.89,180.73,13.8327]
[1734878169208,1.03692108,180.89,180.77,0.12549]
[1734878169411,6.2269,180.9,180.8,0.12549]
[1734878169738,6.2269,180.9,180.84,23.776884]
[1734878170056,6.2269,180.9,180.8,23.902374]
[1734878170353,6.2269,180.9,180.84,23.776884]
[1734878171444,3.7383,180.96,180.85,0.12549]
[1734878171445,9.9652,180.96,180.85,0.12549]
[1734878171650,9.9652,180.96,180.87,20.0]
[1734878171961,6.2269,180.96,180.88,23.776884]
[1734878172612,6.2269,180.96,180.79,20.0]
[1734878172842,6.2269,180.96,180.8,33.8267]
[1734878173023,6.2269,180.96,180.84,20.0]
[1734878173326,6.2269,180.96,180.89,23.902374]
[1734878173716,6.2269,180.96,180.8,13.8267]
[1734878173949,6.2269,180.96,180.85,23.776884]
[1734878174255,1.03619276,180.95,180.8,325.8267]
[1734878174440,14.85209276,180.95,180.76,13.83]
[1734878175220,3.7383,180.94,180.76,13.83]
[1734878175423,20.0,180.92,180.72,14.4970269]
[1734878175647,6.2269,180.9,180.72,14.4970269]
[1734878175864,1.03669553,180.89,180.72,14.4970269]
[1734878176155,6.2269,180.9,180.73,0.12549]
[1734878176521,1.03645003,180.89,180.72,14.4970269]
[1734878177545,13.8213,180.88,180.72,14.4970269]
[1734878177857,1.03686017,180.87,180.72,14.4970269]
[1734878178233,1.03686017,180.87,180.72,0.6642269]
[1734878178855,23.7887,180.86,180.72,0.6642269]
[1734878179032,1.03707324,180.85,180.72,0.6642269]
[1734878181358,6.2269,180.8,180.72,0.6642269]
[1734878181650,1.03736597,180.79,180.72,0.6642269]
[1734878181828,1.7641,180.78,180.6,13.8423]
[1734878182030,1.03741398,180.77,180.6,13.8423]
[1734878182739,1.7641,180.78,180.55,0.6642269]
[1734878182941,5.7269,180.8,180.57,0.12549]
[1734878183146,5.7269,180.8,180.6,0.12549]
[1734878183346,5.7269,180.8,180.65,0.12549]
[1734878183949,5.7269,180.8,180.72,20.0]
[1734878184180,3.469,180.93,180.77,23.776884]
[1734878184381,1.03661872,180.92,180.77,23.776884]
[1734878184663,1.03661872,180.92,180.67,23.776884]
[1734878184873,14.85481872,180.92,180.71,43.776884]
[1734878185063,14.85481872,180.92,180.72,0.12549]
[1734878185375,20.0,180.89,180.72,0.12549]
[1734878185548,1.03685241,180.88,180.72,0.12549]
[1734878186045,6.6302,180.87,180.72,0.12549]
[1734878186244,1.03690165,180.86,180.71,43.776884]
[1734878187067,6.6302,180.87,180.72,0.12549]
[1734878187438,6.6302,180.87,180.71,33.834]
[1734878187975,6.6302,180.87,180.72,0.12549]
[1734878188282,6.6302,180.87,180.74,0.12549]
[1734878188757,6.6302,180.87,180.74,23.902374]
[1734878189274,6.6302,180.87,180.76,23.902374]
[1734878189781,6.6302,180.87,180.76,23.776884]
[1734878190238,6.6302,180.87,180.75,13.8312]
[1734878190653,6.6302,180.87,180.8,23.902374]
[1734878190867,10.0992,180.93,180.83,20.0]
[1734878191068,6.6302,180.93,180.84,23.776884]
[1734878191571,6.6302,180.93,180.82,23.776884]
[1734878193371,6.6302,180.93,180.86,0.12549]
[1734878193542,6.6302,180.99,180.89,23.902374]
[1734878193945,6.6302,180.99,180.89,312.0]
[1734878194168,1.03604679,180.98,180.76,13.8304]
[1734878194342,1.03604679,180.98,180.8,43.776884]
[1734878194542,1.03604679,180.98,180.8,20.0]
[1734878194768,20.0,180.96,180.77,30.0]
[1734878194984,7.66683869,180.95,180.76,13.8304]
[1734878195284,13.8167,180.94,180.77,0.12549]
[1734878195445,1.03655948,180.93,180.76,13.8304]
[1734878195840,1.03655948,180.93,180.73,13.8326]
[1734878196643,1.03655948,180.93,180.76,20.0]
[1734878197168,1.03655948,180.93,180.77,0.12549]
[1734878197345,1.03655948,180.93,180.77,37.731674]
[1734878198080,13.8182,180.92,180.77,37.606184]
[1734878198379,1.03670839,180.91,180.77,20.0]
[1734878198935,1.03658514,180.91,180.78,23.776884]
[1734878199390,1.03653112,180.94,180.74,20.0]
[1734878199568,13.8174,180.93,180.75,43.776884]
[1734878199889,1.03661062,180.92,180.75,43.776884]
[1734878200560,1.03661062,180.92,180.77,20.0]
[1734878200764,1.03661062,180.92,180.78,23.776884]
[1734878201299,13.819,180.91,180.74,13.8319]
[1734878201491,6.6302,180.88,180.71,13.8341]
[1734878201707,1.03694761,180.87,180.64,49.808777]
[1734878201986,20.0,180.85,180.66,30.0]
[1734878202193,1.03696084,180.87,180.66,30.0]
[1734878202864,1.03696084,180.87,180.76,23.776884]
[1734878203074,6.6302,180.88,180.76,23.776884]
[1734878204006,6.6302,180.88,180.77,30.0]
[1734878204164,1.03671051,180.87,180.77,30.0]
[1734878204566,0.12549,180.86,180.77,30.0]
[1734878204786,14.85871051,180.87,180.77,30.0]
[1734878205381,13.8251,180.83,180.66,13.8374]
[1734878205598,6.5769,180.8,180.68,30.0]
[1734878206274,6.5769,180.8,180.69,0.12549]
[1734878206487,6.5769,180.8,180.67,13.8373]
[1734878206695,6.5769,180.8,180.68,30.0]
[1734878207302,1.03717416,180.79,180.68,30.0]
[1734878207606,1.03717416,180.79,180.67,13.8373]
[1734878207762,1.03717416,180.79,180.67,20.0]
[1734878208401,1.03717416,180.79,180.64,13.8396]
[1734878208574,14.86577416,180.79,180.64,13.8396]
[1734878208895,14.86577416,180.79,180.61,13.8418]
[1734878209093,14.86577416,180.79,180.62,0.12549]
[1734878209318,14.86577416,180.79,180.61,13.8418]
[1734878209664,1.03717416,180.79,180.59,27.6863]
[1734878209991,1.03717416,180.79,180.6,30.0]
[1734878210171,1.03717416,180.79,180.63,20.0]
[1734878210704,1.03717416,180.79,180.64,0.12549]
[1734878210913,6.5769,180.8,180.64,23.902374]
[1734878211110,6.5769,180.8,180.71,20.0]
[1734878211410,6.5769,180.8,180.72,23.776884]
[1734878211899,6.5769,180.89,180.76,23.776884]
[1734878212202,1.0366317,180.88,180.76,23.776884]
[1734878212365,1.0366317,180.88,180.72,13.8331]
[1734878212570,1.0366317,180.88,180.75,20.0]
[1734878212789,6.5769,180.89,180.76,23.776884]
[1734878213376,1.03662748,180.88,180.76,23.776884]
[1734878213602,1.03662748,180.88,180.69,13.8356]
[1734878213806,0.12549,180.86,180.7,30.0]
[1734878214006,6.5769,180.83,180.7,30.0]
[1734878214213,1.03737819,180.82,180.63,312.0]
[1734878214905,1.03737819,180.82,180.63,13.8403]
[1734878215313,1.03737819,180.82,180.63,13.3403]
[1734878215675,1.03737819,180.82,180.64,0.12549]
[1734878215880,7.61408269,180.83,180.66,0.12549]
[1734878216079,1.03700645,180.82,180.69,20.0]
[1734878218678,14.86300645,180.82,180.67,13.8367]
[1734878218882,14.86300645,180.82,180.66,20.0]
[1734878219192,14.86300645,180.82,180.64,13.8395]
[1734878219384,14.86300645,180.82,180.65,30.0]
[1734878219571,14.86300645,180.82,180.61,22.32786053]
[1734878219572,23.902374,180.81,180.61,22.32786053]
[1734878219776,6.5769,180.77,180.6,12.19406053]
[1734878220017,1.03767183,180.76,180.6,8.48606053]
[1734878220820,13.8312,180.75,180.58,13.8441]
[1734878221109,1.03772336,180.74,180.59,30.0]
[1734878221404,1.03772336,180.74,180.58,13.8441]
[1734878222397,13.8327,180.73,180.58,13.8441]
[1734878222601,1.03782049,180.72,180.56,333.40328935]
[1734878222775,6.58349,180.71,180.57,30.0]
[1734878222996,1.03802298,180.7,180.57,30.0]
[1734878223176,1.03774559,180.7,180.57,30.0]
[1734878223892,6.458,180.71,180.57,30.0]
[1734878224123,6.458,180.71,180.58,0.12549]
[1734878224416,6.458,180.71,180.59,13.8435]
[1734878224812,6.458,180.71,180.62,20.0]
[1734878225192,6.458,180.79,180.63,23.776884]
[1734878225520,1.03727129,180.78,180.63,23.776884]
[1734878225689,1.03727129,180.78,180.63,335.776884]
[1734878226406,6.458,180.79,180.66,33.8376]
[1734878226717,6.458,180.79,180.7,20.0]
[1734878226899,6.458,180.79,180.66,13.8376]
[1734878227097,1.03715108,180.78,180.62,13.8406]
[1734878227295,1.03715108,180.78,180.64,30.0]
[1734878227508,1.03715108,180.78,180.62,13.8406]
[1734878228511,1.03715108,180.78,180.59,13.8433]
[1734878228696,1.03715108,180.78,180.6,30.0]
[1734878229620,13.8297,180.77,180.6,30.0]
[1734878229810,13.8312,180.75,180.6,30.0]
[1734878230008,1.03782384,180.74,180.6,30.0]
[1734878230324,1.03774443,180.77,180.61,0.12549]
[1734878230519,1.03774443,180.77,180.61,13.8419]
[1734878231035,6.458,180.79,180.64,20.0]
[1734878231331,6.458,180.79,180.65,23.776884]
[1734878231332,1.03727762,180.78,180.65,23.776884]
[1734878231906,1.03727762,180.78,180.65,13.8386]
[1734878232107,6.458,180.79,180.66,23.776884]
[1734878232611,6.458,180.79,180.69,20.0]
[1734878233003,6.458,180.79,180.65,41.5164]
[1734878233004,1.0372049,180.78,180.65,13.8386]
[1734878233210,6.458,180.79,180.73,20.0]
[1734878233634,6.458,180.84,180.73,20.0]
[1734878233938,6.458,180.84,180.78,20.0]
[1734878234606,6.458,180.84,180.75,13.8312]
[1734878234830,6.458,180.84,180.76,23.776884]
[1734878235131,6.458,180.84,180.73,30.0]
[1734878235937,6.458,180.84,180.75,312.0]
[1734878237226,6.458,180.84,180.76,13.8304]
[1734878237627,6.458,180.84,180.75,312.0]
[1734878237804,6.458,180.84,180.73,43.8326]
[1734878238433,6.458,180.84,180.77,20.0]
[1734878238943,6.458,180.93,180.78,23.776884]
[1734878239234,6.458,180.93,180.81,20.0]
[1734878239419,6.458,180.93,180.85,20.0]
[1734878239827,6.458,181.01,180.86,23.776884]
[1734878240016,1.03602117,181.0,180.89,20.0]
[1734878240213,1.03602117,181.0,180.82,13.8259]
[1734878240423,6.458,180.99,180.78,13.8283]
[1734878240679,0.12549,180.96,180.74,25.86476053]
[1734878240839,6.5686,180.95,180.74,329.3787]
[1734878241111,0.12549,180.91,180.74,17.3787]
[1734878241401,1.16223835,180.91,180.74,17.3787]
[1734878241608,21.16223835,180.91,180.74,17.3787]
[1734878241834,1.03674835,180.91,180.74,17.3787]
[1734878242002,1.03665546,180.93,180.74,17.3787]
[1734878242198,1.03665546,180.93,180.77,20.0]
[1734878242421,13.94369,180.92,180.77,20.0]
[1734878242741,1.03681636,180.91,180.77,20.0]
[1734878243033,1.03666357,180.94,180.77,20.0]
[1734878243609,1.03666357,180.94,180.78,13.8289]
[1734878243811,13.94289,180.93,180.75,23.776884]
[1734878244004,1.03666751,180.92,180.78,20.0]
[1734878244235,1.03666751,180.92,180.74,17.3782]
[1734878244403,0.12549,180.91,180.74,17.3782]
[1734878244802,1.03683144,180.9,180.74,3.547]
[1734878245232,1.03677201,180.92,180.75,13.8312]
[1734878245437,23.902374,180.91,180.69,8.48606053]
[1734878245647,0.12549,180.85,180.69,8.48606053]
[1734878245938,1.16272482,180.85,180.69,8.48606053]
[1734878246318,1.03723482,180.85,180.68,13.8358]
[1734878247238,1.03723482,180.85,180.7,312.0]
[1734878247443,1.03723482,180.85,180.71,13.8343]
[1734878248253,6.6648,180.86,180.74,20.0]
[1734878249415,6.6648,180.86,180.76,20.0]
[1734878249416,1.0367497,180.85,180.76,20.0]
[1734878249736,6.6648,180.86,180.76,20.0]
[1734878250109,6.6648,180.86,180.73,20.0]
[1734878250744,6.6648,180.86,180.77,20.0]
[1734878250916,6.6648,180.86,180.73,20.0]
[1734878251113,6.6648,180.86,180.77,20.0]
[1734878251445,6.6648,180.92,180.81,20.0]
[1734878251808,6.6648,180.92,180.82,23.902374]
[1734878252034,6.6648,180.92,180.85,20.0]
[1734878252540,1.03618392,181.0,180.85,20.0]
[1734878252725,6.6648,180.99,180.85,20.0]
[1734878252919,1.03601972,180.98,180.78,23.776884]
[1734878253124,1.03601972,180.98,180.8,13.8274]
[1734878253631,13.8144,180.97,180.8,13.8274]
[1734878253821,1.03647951,180.96,180.79,30.0]
[1734878254541,1.03647951,180.96,180.76,13.8304]
[1734878254841,6.6648,180.93,180.76,13.8304]
[1734878255048,1.03674144,180.92,180.76,13.8304]
[1734878255208,14.85514144,180.92,180.76,13.8304]
[1734878255411,14.85514144,180.92,180.77,30.0]
[1734878256344,1.03674144,180.92,180.77,30.0]
[1734878256720,1.03674144,180.92,180.78,23.776884]
[1734878257015,1.03674144,180.92,180.79,30.0]
[1734878258134,1.03674144,180.92,180.77,23.776884]
[1734878260049,0.12549,180.91,180.76,13.8304]
[1734878260256,0.12549,180.89,180.76,20.0]
[1734878260774,0.12549,180.85,180.69,8.48606053]
[1734878261058,0.12549,180.85,180.7,29.0]
[1734878261059,1.16272317,180.85,180.7,29.0]
[1734878261239,1.16272317,180.85,180.69,8.48606053]
[1734878261436,20.0,180.83,180.69,8.48606053]
[1734878261640,1.03729351,180.82,180.69,8.48606053]
[1734878261847,6.5192,180.81,180.66,13.838]
[1734878262044,1.0372961,180.8,180.66,13.838]
[1734878262454,1.0372961,180.8,180.61,3.8284]
[1734878262669,1.0372961,180.8,180.62,33.8412]
[1734878262957,1.0372961,180.8,180.63,22.776884]
[1734878263258,1.0372961,180.8,180.62,325.8412]